Cogmind - Beta 12 @@@ ROGUE MODE // 2023.12.05 @ 13:49:48 Player: zapruda Result: Destroyed by H-55 Commando with Gauss Rifle Performance ------------- Evolutions (2) 1000 Regions Visited (7) 1400 Robots Destroyed (156) 780 Value Destroyed (3652) 3652 Prototype IDs (33) 660 Alien Tech Used (0) 0 Bonus (850) 850 TOTAL SCORE: 8342 Bonus ------- High Alert Combat Kills 245 Follower Combat Kills 305 Aligned with FarCom 300 Cogmind --------- Core Integrity 0/550 Matter 187/300 Energy 100/100 System Corruption 0% Temperature Cool (0) Movement Core (2350) Ox46 Location -8/Materials Parts ------- > --- POWER (1) -------- (None) > --- PROPULSION (3) --- (None) > --- UTILITY (5) ------ Cargo Storage Unit System Shield > --- WEAPON (2) ------- (None) > --- INVENTORY (30) --- Light Fission Core Cooling System High-capacity Storage Unit High-capacity Battery (250) Advanced Visual Processing Unit Improved Terrain Scanner Armor Integrity Analyzer Core Shielding Improved Power Shielding Improved Propulsion Shielding Improved Utility Shielding Improved Utility Shielding Improved Utility Shielding Insulated Plating Hacking Suite System Shield Heavy EM Shotgun Heavy Particle Gun Advanced Beam Rifle Minigun High-powered Shotgun Gauss Rifle Advanced EMP Blaster Mini Grenade Launcher Peak State ------------ > --- POWER ------------ Heavy Ion Engine > --- PROPULSION ------- Wheel Wheel Armored Wheel > --- UTILITY ---------- Cargo Storage Unit Improved Targeting Computer Improved Propulsion Shielding System Shield > --- WEAPON ----------- Pulse Rifle Improved Assault Rifle > --- INVENTORY -------- Heavy Ion Engine Light Fission Core Light Treads Wheel Wheel Cooling System High-capacity Storage Unit High-capacity Battery High-capacity Matter Pod Advanced Visual Processing Unit Improved Terrain Scanner Core Shielding Improved Propulsion Shielding Improved Utility Shielding Improved Utility Shielding Improved Utility Shielding Insulated Plating Army-in-a-Box Heavy EM Shotgun Minigun Minigun Gauss Rifle Assault Cannon Rocket Launcher Mini Grenade Launcher [Rating: 34] Favorites ----------- Power Ion Engine Engine Ion Engine Propulsion Light Treads Treads Light Treads Leg Aluminum Leg Wheel Armored Wheel Utility High-capacity Storage Unit Device Improved Terrain Scanner Storage High-capacity Storage Unit Processor Improved Targeting Computer Hackware System Shield Protection Core Shielding Weapon Mini Grenade Launcher Energy Gun Pulse Rifle Energy Cannon Ion Cannon Ballistic Gun Improved Assault Rifle Ballistic Cannon Improved Light Cannon Launcher Mini Grenade Launcher Special Weapon Plasma Cutter Build | -11 -10 -10 -9 -9 -9 -8 -8 ------- Run | Jun Mat Min Mat Min Exi Min Mat Slots Evolved 4 | . . . 2 . . . 2 Power . | . . . . . . . . Propulsion 1 | . . . 1 . . . . Utility 3 | . . . 1 . . . 2 Weapon . | . . . . . . . . Parts Attached 93 | 3 17 3 10 7 1 3 49 Power 7 | . 1 . 2 . 1 . 3 Engine 7 | . 1 . 2 . 1 . 3 Core . | . . . . . . . . Reactor . | . . . . . . . . Propulsion 30 | 2 7 . 4 2 . 2 13 Treads 9 | 2 2 . 1 . . 1 3 Leg . | . . . . . . . . Wheel 21 | . 5 . 3 2 . 1 10 Hover . | . . . . . . . . Flight . | . . . . . . . . Utility 21 | . 3 2 2 2 . . 12 Device 3 | . 1 1 1 . . . . Storage 3 | . 1 . . . . . 2 Processor 4 | . 1 1 1 . . . 1 Hackware 1 | . . . . . . . 1 Protection 10 | . . . . 2 . . 8 Artifact . | . . . . . . . . Weapon 35 | 1 6 1 2 3 . 1 21 Energy Gun 8 | . 1 . . . . . 7 Energy Cannon 1 | . . . . . . . 1 Ballistic Gun 12 | 1 . . 1 2 . . 8 Ballistic Cannon 5 | . 2 . 1 . . . 2 Launcher 7 | . 1 1 . 1 . 1 3 Special Weapon 2 | . 2 . . . . . . Impact Weapon . | . . . . . . . . Slashing Weapon . | . . . . . . . . Piercing Weapon . | . . . . . . . . Special Melee Weapon . | . . . . . . . . Unidentified Prototypes 7 | . . . 2 . . . 5 Parts Lost 35 | . 6 . . 5 . 2 22 Power 3 | . . . . . . . 3 Propulsion 16 | . 3 . . 2 . 2 9 Utility 7 | . . . . . . . 7 Weapon 9 | . 3 . . 3 . . 3 Highest Loss Streak 7 | . 3 . . 5 . 1 7 To Critical Strikes . | . . . . . . . . Average Slot Usage (%) 95 | . 94 100 100 98 100 95 85 Engine 11 | . 14 14 11 11 11 11 8 Treads 15 | . 6 28 21 . . 8 9 Wheel 12 | . 18 . 11 31 33 20 14 Device 5 | . . 12 11 9 . . . Storage 11 | . 14 14 11 11 11 11 8 Processor 5 | . 12 1 11 9 . . 7 Hackware 1 | . . . . . . . 6 Protection 6 | . . . . 3 22 22 12 Energy Gun 2 | . 7 . . . . . 5 Ballistic Gun 4 | . 4 . 8 2 11 11 7 Ballistic Cannon 7 | . 6 16 2 8 . . . Launcher 7 | . 1 11 11 11 11 11 2 Special Weapon 1 | . 6 . . . . . . Naked Turns . | . . . . . . . . Heaviest Build 164 | 14 54 54 54 59 59 59 164 Greatest Support 60 | 40 40 40 60 36 36 36 60 Greatest Overweight (x) 51 | . 16 1 4 2 1 4 51 Average Overweight (x) 1 | . 1 1 . 1 1 2 5 Largest Inventory Capacity 30 | 8 20 20 20 20 20 20 30 Average Capacity 22 | 8 18 20 20 20 20 20 29 Most Carried 30 | 6 20 20 20 20 19 20 30 Average Carried 19 | 4 12 19 19 19 17 18 25 Final Capacity 30 | 8 20 20 20 20 20 20 30 Final Carried 24 | 2 18 20 20 14 19 20 24 Class Distribution -------------------- 77% | Mutant 22% | Hauler-Mutant Dominant Class ---------------- Mutant | -10/Materials Mutant | -10/Mines Mutant | -9/Materials Mutant | -9/Mines Mutant | -9/Exiles Mutant | -8/Mines Hauler-Mutant | -8/Materials Resources | -11 -10 -10 -9 -9 -9 -8 -8 ----------- Run | Jun Mat Min Mat Min Exi Min Mat Matter Collected 3460 | 178 870 315 452 129 . 400 1116 Remotely . | . . . . . . . . Salvage Created 4902 | . 1013 480 844 300 . 500 1765 Parts 295 | . 50 24 62 12 . 32 115 Haulers Intercepted 7 | . 2 . 3 . . . 2 Recyclers Shooed 6 | . 1 . . 1 . 2 2 Parts Field Recycled . | . . . . . . . . Retrieved Matter . | . . . . . . . . Parts Self-Destructed . | . . . . . . . . Prevented . | . . . . . . . . Kills | -11 -10 -10 -9 -9 -9 -8 -8 ------- Run | Jun Mat Min Mat Min Exi Min Mat Combat Hostiles Destroyed 122 | . 13 6 21 25 . 18 39 Guns 35 | . 7 . 8 2 . 3 15 Cannons 18 | . 5 2 3 3 . . 5 AOE 69 | . 1 4 10 20 . 15 19 Classes Destroyed 15 | . 7 3 1 . . 1 3 Worker 10 | . 2 1 2 . . 2 3 Builder 6 | . 1 . 2 . . . 3 Tunneler 5 | . . 3 . . . 1 1 Hauler 7 | . 2 . 3 . . . 2 Recycler 15 | . 4 4 . 1 . 2 4 Operator 1 | . 1 . . . . . . Watcher 10 | . 3 . 3 . . . 4 Swarmer 34 | . . 1 6 3 . 13 11 Cutter 3 | . . . . . . . 3 Grunt 47 | . 13 4 11 3 . 3 13 Duelist 1 | . . . . . . . 1 Sentry 11 | . . . 4 . . . 7 Specialist 4 | . . . . . . . 4 Hunter 2 | . . . . . . 2 . Assembled 20 | . . 1 . 19 . . . Best Kill Streak 17 | . 5 7 5 17 . 8 12 Combat Bots Only 17 | . 3 4 3 17 . 6 11 Max Kills in Single Turn 5 | . 1 4 3 5 . 4 3 Gunslinging . | . . . . . . . . Exploded 5 | . 1 2 2 5 . 4 3 Melee . | . . . . . . . . Uniques/NPCs Destroyed . | . . . . . . . . Combat | -11 -10 -10 -9 -9 -9 -8 -8 -------- Run | Jun Mat Min Mat Min Exi Min Mat Damage Taken 6156 | . 1090 119 640 612 . 415 3280 Core 1010 | . 171 . 94 120 . 74 551 Absorbed by Shields . | . . . . . . . . Redirected to Shielding 289 | . . . . 3 . 17 269 Regen/Repaired (Parts) 645 | . . . . . . . 645 Core Remaining (%) 53 | 100 . 31 . . . 28 . Volleys Fired 453 | . 91 54 96 27 . 52 133 Largest 2 | . 2 2 2 2 . 2 2 Hottest 107 | . 78 78 53 69 . 56 107 Shots Fired 658 | . 168 66 104 35 . 62 223 Gun 377 | . 91 . 69 14 . 52 151 Cannon 190 | . 46 61 27 12 . . 44 Launcher 63 | . 3 5 8 9 . 10 28 Special 28 | . 28 . . . . . . Kinetic 455 | . 84 61 96 26 . 52 136 Thermal 87 | . 28 . . . . . 59 Explosive 56 | . 3 5 8 9 . 10 21 Electromagnetic 60 | . 53 . . . . . 7 Robot Hit Streak 15 | . 15 4 9 6 . 6 11 Robot Miss Streak 8 | . 8 3 3 5 . 2 5 Penetration Max 1 | . . . . . . . 1 Secondary Targets 3 | . 2 . . . . . 1 Max Gunslinging Chain 1 | . 1 . . . . . 1 Shots Hit Robots 369 | . 98 8 63 20 . 44 136 Core Hits 255 | . 38 14 40 40 . 34 89 Critical Kills 1 | . . . . . . . 1 Critical Parts Destroyed 1 | . . . . . . . 1 Critical Strikes 7 | . 2 . 2 . . . 3 Meltdown 1 | . . . . . . . 1 Destroy 1 | . . . . . . . 1 Blast 4 | . 1 . 2 . . . 1 Sever 1 | . 1 . . . . . . Melee Attacks . | . . . . . . . . Impact . | . . . . . . . . Slashing . | . . . . . . . . Piercing . | . . . . . . . . Sneak Attacks . | . . . . . . . . Combat Hostiles . | . . . . . . . . Follow-up Attacks . | . . . . . . . . Damage Inflicted 11078 | . 1760 540 1729 1522 . 1431 4096 Guns 4028 | . 782 . 754 146 . 495 1851 Cannons 1640 | . 446 165 288 160 . . 581 Explosions 5241 | . 370 368 687 1216 . 936 1664 Melee . | . . . . . . . . Ramming 7 | . . 7 . . . . . Kinetic 4477 | . 709 165 1042 306 . 495 1760 Thermal 1157 | . 319 . . . . . 838 Explosive 4544 | . 163 368 687 1216 . 936 1174 Electromagnetic 893 | . 569 . . . . . 324 Impact . | . . . . . . . . Slashing . | . . . . . . . . Piercing . | . . . . . . . . Highest Corruption . | . . . . . . . . Average Corruption . | . . . . . . . . Corruption Purged . | . . . . . . . . Corruption Blocked . | . . . . . . . . Overload Shots . | . . . . . . . . Overflow Damage 71 | . . . . 14 . 4 53 Projectiles 19 | . . . . . . . 19 Explosions 52 | . . . . 14 . 4 34 Melee . | . . . . . . . . Knockbacks 14 | . 7 1 . 1 . . 5 Impact . | . . . . . . . . Kinetic 12 | . 5 1 . 1 . . 5 Secondary 2 | . 2 . . . . . . Self-Inflicted Damage 391 | . 95 16 25 27 . 10 218 Shots 16 | . 3 1 1 2 . 1 8 Rammed 2 | . . 2 . . . . . Targets Rammed 2 | . . 2 . . . . . Kicked . | . . . . . . . . Crushed . | . . . . . . . . Highest Temperature 300 | . 279 49 24 29 . 7 300 Average Temperature 54 | . 66 18 14 19 . 4 55 Received Heat Transfer 1514 | . 435 56 291 57 . 45 630 Effects 2 | . 2 . . . . . . Energy Bleed 1 | . 1 . . . . . . Interference 1 | . 1 . . . . . . Siege Activations . | . . . . . . . . Robots Corrupted . | . . . . . . . . Combat Hostiles . | . . . . . . . . Parts Fried 2 | . . . . . . . 2 Impact Corruptions . | . . . . . . . . Robots Melted 1 | . . . . . . . 1 Combat Hostiles . | . . . . . . . . Parts Melted 6 | . . . . . . . 6 Heat Transferred 2187 | . 668 . . . . . 1519 Parts Sabotaged . | . . . . . . . . Parts Stolen . | . . . . . . . . Parts Stripped . | . . . . . . . . Power Chain Reactions 5 | . 3 . . . . . 2 Missiles Intercepted . | . . . . . . . . Alert | -11 -10 -10 -9 -9 -9 -8 -8 ------- Run | Jun Mat Min Mat Min Exi Min Mat Peak Influence 781 | . 177 142 781 401 . 399 672 Initial 248 | . . 42 . 248 . . 61 Average 176 | . 73 16 395 275 . 208 322 Maximum Alert Level 3 | . . . 3 2 . 1 2 Low Security (%) 62 | 100 100 100 20 15 . 60 18 Level 1 23 | . . . 32 84 . 39 49 Level 2 12 | . . . 40 . . . 32 Level 3 . | . . . 5 . . . . Level 4 . | . . . . . . . . Level 5 . | . . . . . . . . High Security . | . . . . . . . . Max Security . | . . . . . . . . Squads Dispatched 21 | . 5 . 4 . . . 12 Investigation 9 | . 3 . 4 . . . 2 Extermination . | . . . . . . . . Reinforcement 8 | . 2 . . . . . 6 Assault 1 | . . . . . . . 1 Garrison 3 | . . . . . . . 3 Intercept . | . . . . . . . . Searches Triggered . | . . . . . . . . Construction Impeded . | . . . . . . . . Haulers Reinforced . | . . . . . . . . Active Scanning Responses . | . . . . . . . . Cargo Convoy Interrupts . | . . . . . . . . Stealth | -11 -10 -10 -9 -9 -9 -8 -8 --------- Run | Jun Mat Min Mat Min Exi Min Mat Distress Signals 12 | . 4 . 2 . . . 6 Communications Jammed . | . . . . . . . . Distress Signals . | . . . . . . . . Times Spotted 170 | . 23 10 42 25 . 17 53 Peak Tracking Total 15 | . 4 3 7 15 . 4 5 Tactical Retreats 9 | . 2 . . 1 . . 6 Traps | -11 -10 -10 -9 -9 -9 -8 -8 ------- Run | Jun Mat Min Mat Min Exi Min Mat Traps Triggered 8 | . 3 . 1 . . . 4 Indirectly . | . . . . . . . . Trap Hack Attempts . | . . . . . . . . Triggered . | . . . . . . . . Disarmed 6 | . . . . . . . 6 Reprogrammed . | . . . . . . . . Reused . | . . . . . . . . Traps Extracted . | . . . . . . . . Installed . | . . . . . . . . Triggered . | . . . . . . . . Machines | -11 -10 -10 -9 -9 -9 -8 -8 ---------- Run | Jun Mat Min Mat Min Exi Min Mat Machines Disabled 9 | . 5 1 1 . . . 2 Max in Single Turn 1 | . 1 1 1 . . . 1 Machines Repaired . | . . . . . . . . Machines Sabotaged . | . . . . . . . . Overloaded Fab Kills . | . . . . . . . . Hacking | -11 -10 -10 -9 -9 -9 -8 -8 --------- Run | Jun Mat Min Mat Min Exi Min Mat Machines Accessed 24 | . 5 . 10 . 1 . 8 Terminals 21 | . 5 . 10 . . . 6 Fabricators . | . . . . . . . . Repair Stations 1 | . . . . . . . 1 Recycling Units 1 | . . . . . . . 1 Scanalyzers . | . . . . . . . . Garrison Access . | . . . . . . . . Total Hacks 78 | . 10 . 39 . 1 . 28 Successful 38 | . 4 . 17 . 1 . 16 Failed 40 | . 6 . 22 . . . 12 Catastrophic 5 | . 2 . 1 . . . 2 Database Lockouts . | . . . . . . . . Manual 57 | . 10 . 29 . 1 . 17 Terminals 70 | . 10 . 39 . . . 21 Fabricators . | . . . . . . . . Repair Stations 4 | . . . . . . . 4 Recycling Units 3 | . . . . . . . 3 Scanalyzers . | . . . . . . . . Garrison Access . | . . . . . . . . Terminal Hacks 18 | . . . 10 . 1 . 7 Robot Analysis 3 | . . . 3 . . . . Prototype ID Bank 1 | . . . 1 . . . . Terminal Index 2 | . . . 1 . . . 1 Recycling Unit Index 1 | . . . . . . . 1 Alert Level 4 | . . . 2 . . . 2 Unreport Threat 2 | . . . 1 . . . 1 Disarm Traps 1 | . . . . . . . 1 Recall Investigation 1 | . . . 1 . . . . Registered Components 1 | . . . 1 . . . . Registered Prototypes 1 | . . . . . . . 1 EX-Prototype ID Bank 1 | . . . . . 1 . . Fabricator Hacks . | . . . . . . . . Repair Station Hacks 4 | . . . . . . . 4 Scan Component 2 | . . . . . . . 2 Repair 2 | . . . . . . . 2 Recycling Unit Hacks 1 | . . . . . . . 1 Retrieve Components 1 | . . . . . . . 1 Scanalyzer . | . . . . . . . . Garrison Access Hacks . | . . . . . . . . Unauthorized Hacks 15 | . 4 . 7 . . . 4 Terminals 15 | . 4 . 7 . . . 4 Botnet 15 | . 4 . 7 . . . 4 Fabricators . | . . . . . . . . Repair Stations . | . . . . . . . . Recycling Units . | . . . . . . . . Scanalyzers . | . . . . . . . . Garrison Access . | . . . . . . . . Data Cores Recovered . | . . . . . . . . Used . | . . . . . . . . Hacking Detections 19 | . 4 . 10 . . . 5 Full Trace Events 6 | . 1 . 3 . . . 2 Feedback Events . | . . . . . . . . Feedback Blocked . | . . . . . . . . Robot Schematics Acquired . | . . . . . . . . Robots Built . | . . . . . . . . Authchips . | . . . . . . . . Time . | . . . . . . . . Total Robot Build Rating . | . . . . . . . . Part Schematics Acquired . | . . . . . . . . Parts Built . | . . . . . . . . Authchips . | . . . . . . . . Time . | . . . . . . . . Total Part Build Rating . | . . . . . . . . Parts Repaired 2 | . . . . . . . 2 Time 70 | . . . . . . . 70 Parts Recycled . | . . . . . . . . Recycled Matter . | . . . . . . . . Retrieved Matter . | . . . . . . . . Retrieved Components 10 | . . . . . . . 10 Parts Scanalyzed . | . . . . . . . . Part Schematics Acquired . | . . . . . . . . Parts Damaged . | . . . . . . . . Bothacking | -11 -10 -10 -9 -9 -9 -8 -8 ------------ Run | Jun Mat Min Mat Min Exi Min Mat Used RIF Installer . | . . . . . . . . Robots Hacked . | . . . . . . . . Non-combat . | . . . . . . . . Combat . | . . . . . . . . Robot Hacks Applied . | . . . . . . . . Relay Couplers Released . | . . . . . . . . Fabnet Peak Effective % . | . . . . . . . . Robots Rewired . | . . . . . . . . Allies Hacked . | . . . . . . . . Hacks Repelled . | . . . . . . . . Allies | -11 -10 -10 -9 -9 -9 -8 -8 -------- Run | Jun Mat Min Mat Min Exi Min Mat Total Allies 6 | . . 6 . . . . . Largest Group 4 | . . 4 4 1 . . . Highest-Rated Group 67 | . . 67 45 16 . . . Highest-Rated Ally 31 | . . 31 16 16 . . . Total Orders . | . . . . . . . . Ally Attacks 63 | . . 11 51 1 . . . Total Damage 792 | . . 190 588 14 . . . Kills 16 | . . 4 12 . . . . Allies Corrupted . | . . . . . . . . Allies Melted 1 | . . 1 . . . . . Intel | -11 -10 -10 -9 -9 -9 -8 -8 ------- Run | Jun Mat Min Mat Min Exi Min Mat Robot Analysis Total 3 | . . . 3 . . . . Derelict Logs Recovered 2 | . . 1 . 1 . . . Drone Launches . | . . . . . . . . Drone Recoveries . | . . . . . . . . Exploration | -11 -10 -10 -9 -9 -9 -8 -8 ------------- Run | Jun Mat Min Mat Min Exi Min Mat Turns Passed 9819 | 6 1475 3120 1154 475 461 904 2224 Spaces Moved 4705 | 1 782 1035 665 380 432 636 774 Core 18 | . 14 . . . . . 4 Treads 1673 | 1 121 1035 363 . . . 153 Legs . | . . . . . . . . Wheels 3014 | . 647 . 302 380 432 636 617 Hover . | . . . . . . . . Flight . | . . . . . . . . Fastest Speed 105 | 160 110 240 105 105 105 105 143 Average Speed 165 | 160 141 240 135 106 105 122 212 Slowest Speed 2600 | 160 850 240 160 120 105 150 2600 Overloaded Moves . | . . . . . . . . Propulsion Burnouts . | . . . . . . . . Robots Hopped . | . . . . . . . . Cave-ins Triggered . | . . . . . . . . Exploration Rate (%) 71 | 2 88 100 70 90 64 95 63 Regions Visited 7 Branch Regions 4 Pre-discovered Areas 1 | . . . . 1 . . . Known Exits Taken 3 | . . 1 1 . 1 . . Unknown Exits Taken 4 | 1 1 . . 1 . 1 . Scrap Searched 3 | . . 2 . . . 1 . Spaces Dug 15 | . . 6 4 . . . 5 Terrain Destroyed 495 | . 16 36 67 71 . 82 223 Melee . | . . . . . . . . Projectile 22 | . 2 7 4 . . . 9 AOE 473 | . 14 29 63 71 . 82 214 Terrain Rammed . | . . . . . . . . Walls Destroyed . | . . . . . . . . Machines Disabled . | . . . . . . . . Actions | -11 -10 -10 -9 -9 -9 -8 -8 --------- Run | Jun Mat Min Mat Min Exi Min Mat Total 6072 | 7 958 1603 821 413 440 697 1133 Wait 658 | . 21 504 24 . 2 2 105 Move 4698 | . 781 1034 664 379 431 635 774 Hop . | . . . . . . . . Pick Up 123 | . 36 4 12 . 3 3 65 Fast Attach 10 | . . . 4 . . . 6 Attach 49 | 2 8 . 4 5 . 3 27 Detach 2 | . . . . . . 1 1 Swap 34 | 1 9 3 2 2 1 . 16 Drop 43 | 4 12 2 15 . 3 1 6 Fire 453 | . 91 54 96 27 . 52 133 Melee . | . . . . . . . . Ram . | . . . . . . . . Kick . | . . . . . . . . Crush 2 | . . 2 . . . . . Escape Stasis . | . . . . . . . . Rewire . | . . . . . . . . Trap . | . . . . . . . . Miscellaneous . | . . . . . . . . Route ------- -11/Junkyard -10/Materials (discovered 3 exits: *Mat x2 / [*Min]) -10/Mines (discovered 2 exits: *Mat x2) -9/Materials (discovered 3 exits: *Mat x2 / *Min) -9/Mines (discovered 3 exits: *Mat x2 / *Exi) -9/Exiles (discovered 2 exits: *Min x2) -8/Mines (discovered 2 exits: *Mat x2) -8/Materials (discovered 1 exit: [*Fac]) History --------- Turn | Location | Event 7 | -11/Junkyard | Discovered new exit (range 0) 7 | -11/Junkyard | Entered Materials 281 | -10/Materials | Lost 3 parts (2n1w) 302 | -10/Materials | Build established: Mutant 682 | -10/Materials | Discovered new exit (range 18) 1114 | -10/Materials | Discovered new exit (range 7) 1164 | -10/Materials | Core integrity fell below 50% 1282 | -10/Materials | Discovered new exit (range 14) 1482 | -10/Materials | Entered Mines 1528 | -10/Mines | Discovered new exit (range 8) 1541 | -10/Mines | Met a Derelict bent on vengeance 1675 | -10/Mines | Received a Mining Laser from a helpful Derelict 1967 | -10/Mines | Excavation squad dispatched 1967 | -10/Mines | A large section of the Mines collapsed 2313 | -10/Mines | Assisted by bots powering up and referring to "LRC-V3" 2335 | -10/Mines | Discovered new exit (range 15) 4249 | -10/Mines | Identified exit to Materials 4602 | -10/Mines | Entered Materials 4602 | -9/Materials | Accompanied by 4 allies 4602 | -9/Materials | Evolved 2 slots: Propulsion x1, Utility x1 4603 | -9/Materials | Identified exit to Mines 5072 | -9/Materials | Discovered new exit (range 6) 5567 | -9/Materials | Discovered new exit (range 5) 5756 | -9/Materials | Entered Mines 5756 | -9/Mines | Accompanied by 1 ally 5783 | -9/Mines | Learned location of Storage (-9) 5794 | -9/Mines | Discovered new exit (range 8) 6039 | -9/Mines | Discovered new exit (range 4) 6042 | -9/Mines | Learned Materials terminal intel 6056 | -9/Mines | YI-UF0 nonchalantly dropped a Grenade Launcher on the ground 6121 | -9/Mines | Assembled infested the area 6157 | -9/Mines | Destroyed 17 combat bots 6170 | -9/Mines | Core integrity fell below 50% 6198 | -9/Mines | Lost 5 parts (2n3w) 6226 | -9/Mines | Deemed a non-threat by the Exiles lab entrance 6226 | -9/Mines | Discovered new exit (range 5) 6231 | -9/Mines | Entered Exiles 6232 | -9/Exiles | Identified exit to Mines 6260 | -9/Exiles | Met 8R-AWN 6313 | -9/Exiles | Met EX-HEX 6357 | -9/Exiles | Met EX-BIN 6369 | -9/Exiles | Aligned with FarCom system 6370 | -9/Exiles | Given EX-Vault access code 6396 | -9/Exiles | Opened EX-Vault 6407 | -9/Exiles | Found Army-in-a-Box 6430 | -9/Exiles | Warned to stay clear of 0b10 Research branches 6460 | -9/Exiles | Met EX-DEC 6497 | -9/Exiles | Discovered exit to Mines (range 10) 6692 | -9/Exiles | Left Exiles lab with Army-in-a-Box 6692 | -9/Exiles | Entered Mines 6813 | -8/Mines | Discovered new exit (range 9) 7586 | -8/Mines | Discovered new exit (range 8) 7596 | -8/Mines | Entered Materials 7596 | -8/Materials | Evolved 2 slots: Utility x2 7597 | -8/Materials | Loaded intel: 12 terminal locations 7897 | -8/Materials | Build established: Hauler-Mutant 8119 | -8/Materials | Lost 3 parts (1n2u) 8198 | -8/Materials | Discovered new exit (range 16) 8555 | -8/Materials | Repaired Gauss Rifle 8582 | -8/Materials | Repaired Cargo Storage Unit 9147 | -8/Materials | Destroyed 11 combat bots 9154 | -8/Materials | Lost 5 parts (4n1u) 9451 | -8/Materials | Garrison activated, responded to threat 9569 | -8/Materials | Lost 3 parts (1p1u1w) 9596 | -8/Materials | First assault squad dispatched 9668 | -8/Materials | Garrison activated, responded to threat 9692 | -8/Materials | Core integrity fell below 50% 9716 | -8/Materials | Destroyed 7 combat bots 9811 | -8/Materials | Core integrity fell below 20% 9820 | -8/Materials | Destroyed by H-55 Commando with Gauss Rifle Last Messages --------------- 09804_ Slug penetrates Wall. 09804_ Knocked back. 09806_ M-28 Smith repairs G-47 Trooper. 09808_ M-28 Smith repairs Imp. Heat Sink. 09808_ Slug penetrates Wall. 09808_ Hrd. Medium Armor Plating destroyed. 09809_ K-01 Serf collects debris. 09810_ Imp. Targeting Computer destroyed. 09810_ Critical hit (Blast). 09811_ Slug penetrates Wall. 09811_ U-05 Engineer builds a Door. 09812_ K-01 Serf collects debris. 09814_ Slug penetrates Wall. 09814_ K-01 Serf collects debris. 09817_ Slug penetrates Wall. 09818_ U-05 Engineer builds a Wall. 09819_ Assault Cannon destroyed. 09819_ Knocked back. 09820_ K-01 Serf collects debris. 09820_ Slug penetrates Wall. Map ----- +----------------------------------------------------+ | | | | | | | | | | | | | ??????????????????#############??????????????????? | | ??????????????????# ! #??????????????????? | | ??????????????????# #??????????????????? | | ??????????????????# #??????????????????? | | ??????????????????# #??????????????????? | | ????????########### ! #?????###??????????? | | ######### + [ #?????# ??????????? | | ! #^ ####### #?????# #??????????? | | # #?????#####;+######?????# #??????????? | | """ """ # #?????????# ########### #??????????? | | """ """ + ^ #?????????# # # ############ | | """ """ # #??##?????# # + + | | # #??# ?????# + [ # # ####### | | # #??# ???### #! # # !# | | # #??# ???# # #% # # ] # | | ######### #??# ??# # ######## ## ## / # ! | | ????????# #??# ??### %##########[! # # | | ????????# #??# ??# # h! *! [[%![ #####+##### | | ????????# #??#= ??### g ##+#######[* * #??## | | ????????# #??#%= ??## @## ########### #### | | ????????# #??#[[ ??## %;# " !## # | | ??????### #??# [=??## %!## "G"%## # | | ??????# #### ##;;k% ## " "[# ! # | | ###### *%! [k ## # !! # | | !%%%! ! k! ##! == # ! + | | #######=[%= m ! ## [ # # | | ???????##=######% H#;;############ ###+## | | ??????????????## u#########???# ## # | | ???????????????# #???????????# % ## # | | ?????????????? + +?"T"???????# ######## # | | ###?????????? # ?????????????# #????# # | | #???????? ## ??####??####?#### #######?# # | | #######??##??# ??# ## #???# #?# # | | # #####?? ??# #####! """ #?# # | | # ??? ???# # # """ #?##### | | " # ??? ???# # # """ #?????? | | " # ???? [ ???# # # #??????+ | | # #????## ???# # # """ #??????? | | #### #???????#????# # # """ #??????? | | # #????????????# # # """ #??????? | | # #?????????????? ??# # #??????? | | / ################# ######+######+####??????? | | " # *%! % % ##?????? | | " # % % ######## | +----------------------------------------------------+ Best States ------------- Heat Dissipation 31 Energy Generation 14 Energy Capacity 280 Matter Stores 300 Matter Capacity 300 Sight Range 18 Terrain Scan Range 16 Terrain Scan Density 85 Armor Coverage 225 Core Shielding 20 Propulsion Shielding 66 Weapon Shielding 33 Evasion (%) 40 Targeting Accuracy 6 Recoil Reduction 3 Defensive Hacking 10 Item Schematics ----------------- None Robot Schematics ------------------ None Fabricated ------------ Nothing Alien Tech Used ----------------- None Achievements -------------- Armchair Analyst Packrat Challenges ------------ None Game ------ Seed GrenadeEnhancedStripper Manual? 0 Play Time 01:04:24 Cumulative 103.7 hours Start 2023.12.05 @ 12:41:48 End 2023.12.05 @ 13:49:48 Sessions 1 Manual Loads 0 Difficulty Rogue Special Mode None Game No. 148 Rogue 148 Adventurer 0 Explorer 0 Win Type - Total 0 Types 0/0/0/0/0/0/0/0/0 Lore% 32 Gallery% 56 Achievement% 40 Wizard Run 0 Options --------- ASCII 0 Keyboard 0 Movement Mouse Keybinds 0 Fullscreen 2 Font 18/SmallcapsGlow Map View 76x50 Tactical HUD 1 Map Filters NONE Filters NONE Steam 1 RUN: 33d76ee5-c94a-4065-96f5-1d8634cacd6e